bitfinex/quotes_BTCUSD_20250512
["timestamp","ask_amount","ask_price","bid_price","bid_amount"]
[1747055855594,0.23440011,104270.0,104260.0,1.35688]
[1747055855829,0.23440011,104270.0,104260.0,0.41424]
[1747055856047,0.23440011,104270.0,104260.0,0.75424]
[1747055857085,0.002,104270.0,104260.0,0.9748415]
[1747055857317,0.002,104270.0,104260.0,1.00033226]
[1747055857515,0.002,104270.0,104260.0,1.01533226]
[1747055857745,0.002,104270.0,104260.0,1.41533226]
[1747055858107,0.01158965,104270.0,104260.0,1.41533226]
[1747055858362,0.002,104270.0,104260.0,1.40033226]
[1747055858501,0.02117949,104270.0,104260.0,1.40033226]
[1747055858696,0.01158965,104270.0,104260.0,1.40033226]
[1747055858908,0.0211794,104270.0,104260.0,1.40033226]
[1747055859098,0.22257997,104270.0,104260.0,1.15424]
[1747055859330,0.23797997,104270.0,104260.0,1.36525028]
[1747055859521,0.23797997,104270.0,104260.0,1.37484113]
[1747055859803,0.23797988,104270.0,104260.0,1.58707189]
[1747055860369,0.03657958,104270.0,104260.0,1.58707189]
[1747055860782,0.0461696,104270.0,104260.0,1.58707189]
[1747055860932,0.02117958,104270.0,104260.0,1.58707189]
[1747055861139,0.01158965,104270.0,104260.0,1.58707189]
[1747055861339,0.0211794,104270.0,104260.0,1.60267189]
[1747055861767,0.03076933,104270.0,104260.0,1.60267189]
[1747055862795,0.04035944,104270.0,104260.0,1.60267189]
[1747055862999,0.03076933,104270.0,104260.0,1.60267189]
[1747055863626,0.01158965,104270.0,104260.0,1.60267189]
[1747055863835,0.002,104270.0,104260.0,1.60267189]
[1747055864072,0.002,104270.0,104260.0,1.61867189]
[1747055866689,0.002,104270.0,104260.0,1.71452619]
[1747055869007,0.002,104270.0,104260.0,1.69852619]
[1747055869888,0.002,104270.0,104260.0,1.63144589]
[1747055870486,0.002,104270.0,104260.0,1.72730019]
[1747055870688,0.002,104270.0,104260.0,1.74280019]
[1747055871712,0.01158965,104270.0,104260.0,1.74280019]
[1747055872067,0.002,104270.0,104260.0,1.74280019]
[1747055872512,0.23489983,104270.0,104260.0,0.028774]
[1747055872715,0.23620086,104260.0,104250.0,0.4163]
[1747055872922,0.24579226,104260.0,104250.0,1.0273308]
[1747055873096,0.21701952,104260.0,104250.0,0.34]
[1747055873329,0.22713098,104250.0,104240.0,0.44031131]
[1747055873544,0.0095926,104240.0,104230.0,0.60817893]
[1747055873751,0.20145752,104240.0,104230.0,1.02596661]
[1747055873977,0.0095926,104240.0,104230.0,1.00574513]
[1747055874191,0.01918538,104240.0,104230.0,1.26390513]
[1747055874402,0.01918538,104240.0,104230.0,1.60390513]
[1747055874605,0.0095926,104240.0,104230.0,1.26390513]
[1747055874815,0.24307933,104250.0,104240.0,0.21105113]
[1747055875019,0.23677165,104250.0,104240.0,0.55105113]
[1747055875194,0.23677156,104250.0,104240.0,0.57023678]
[1747055875429,0.0096404,104250.0,104240.0,0.57982938]
[1747055875637,4.881e-05,104250.0,104240.0,0.57982938]
[1747055875823,0.01923226,104250.0,104240.0,0.57982938]
[1747055876054,0.0384159,104250.0,104240.0,0.57982938]
[1747055876263,0.0384159,104250.0,104240.0,0.57023623]
[1747055876482,0.24606242,104250.0,104240.0,0.95105076]
[1747055876696,0.2268797,104250.0,104240.0,0.74]
[1747055876904,0.23647138,104250.0,104240.0,0.96064391]
[1747055877112,0.25167138,104250.0,104240.0,0.74959324]
[1747055877453,0.24207961,104250.0,104240.0,0.75359315]
[1747055877634,0.24207961,104250.0,104240.0,0.744]
[1747055877795,0.24207961,104250.0,104240.0,0.75359306]
[1747055878205,0.24207961,104250.0,104240.0,0.75359324]
[1747055878428,0.24207961,104250.0,104240.0,0.55805131]
[1747055878590,0.25167193,104250.0,104240.0,0.56764418]
[1747055878833,0.25167193,104250.0,104240.0,0.55505131]
[1747055879239,0.24207988,104250.0,104240.0,0.344]
[1747055879651,0.33793418,104250.0,104240.0,0.54216]
[1747055880273,0.22707156,104230.0,104220.0,1.21152]
[1747055880484,0.24307156,104230.0,104220.0,1.35432]
[1747055880864,0.25266517,104230.0,104220.0,1.55581673]
[1747055881066,0.24307138,104230.0,104220.0,0.61432]
[1747055881495,0.32933179,104230.0,104220.0,0.002]
[1747055882139,0.32933179,104230.0,104220.0,0.005]
[1747055882345,0.32933179,104230.0,104220.0,0.009]
[1747055882756,0.32933179,104230.0,104220.0,0.006]
[1747055883115,0.32933179,104230.0,104220.0,0.007]
[1747055883730,0.32933179,104230.0,104220.0,0.20849682]
[1747055883908,0.016,104230.0,104220.0,0.23328096]
[1747055884108,0.25194507,104240.0,104230.0,0.21107156]
[1747055884316,0.0158,104240.0,104230.0,0.23985276]
[1747055884519,0.02539241,104240.0,104230.0,0.57096819]
[1747055884716,0.04457807,104240.0,104230.0,0.57096819]
[1747055885064,0.25562901,104240.0,104230.0,0.23985285]
[1747055885328,0.2460366,104240.0,104230.0,0.57096847]
[1747055885542,0.23644345,104240.0,104230.0,0.57096783]
[1747055885760,0.0349851,104240.0,104230.0,0.57096783]
[1747055885974,0.0096404,104250.0,104240.0,0.56064354]
[1747055886187,0.22067092,104250.0,104240.0,0.89175897]
[1747055886410,0.0288244,104250.0,104240.0,0.89175897]
[1747055886528,0.23026315,104250.0,104240.0,0.55105094]
[1747055886760,0.23985547,104250.0,104240.0,0.56064372]
[1747055886962,0.24596388,104250.0,104240.0,0.55105113]
[1747055887177,0.19186492,104240.0,104230.0,0.19188264]
[1747055887384,0.23023623,104240.0,104230.0,1.33399662]
[1747055887594,0.23634382,104240.0,104230.0,1.34359138]
[1747055887791,0.24593697,104240.0,104230.0,1.35318508]
[1747055887997,0.24593697,104240.0,104230.0,1.34359138]
[1747055888217,0.23634373,104240.0,104230.0,1.36277878]
[1747055888422,0.01059241,104240.0,104230.0,1.70348773]
[1747055888737,0.22164326,104240.0,104230.0,1.6938943]
[1747055888957,0.22775113,104240.0,104230.0,0.34]
[1747055889170,0.33960543,104240.0,104230.0,0.34]
[1747055889374,0.23636499,104230.0,104220.0,0.94349682]
[1747055889580,0.2363649,104230.0,104220.0,1.29380196]
[1747055889792,0.02878083,104230.0,104220.0,1.30339649]
[1747055890023,0.00959333,104230.0,104220.0,1.31299093]
[1747055890206,0.01059241,104240.0,104230.0,0.22066462]
[1747055890452,0.02977788,104240.0,104230.0,0.55178005]
[1747055890632,0.23123586,104240.0,104230.0,0.55178014]
[1747055890864,0.221644,104240.0,104230.0,0.20147731]
[1747055891068,0.237344,104240.0,104230.0,0.22066499]
[1747055891297,0.237344,104240.0,104230.0,0.23025869]
[1747055891500,0.237344,104240.0,104230.0,0.20147731]
[1747055891637,0.237344,104240.0,104230.0,0.2110712]
[1747055892247,0.236344,104240.0,104230.0,0.22066499]
[1747055892444,0.236344,104240.0,104230.0,0.56137412]
[1747055892843,0.236344,104240.0,104230.0,0.95178042]
[1747055893044,0.22875039,104240.0,104230.0,0.96137403]
[1747055893269,0.02118547,104240.0,104230.0,0.97096755]
[1747055893464,0.02118547,104240.0,104230.0,1.32636755]
[1747055893465,0.002,104240.0,104230.0,1.32636755]
[1747055893858,0.01159251,104240.0,104230.0,1.50316755]
[1747055894062,0.02118529,104240.0,104230.0,1.50316755]
[1747055894295,0.01159251,104240.0,104230.0,1.50316755]
[1747055894521,0.03077798,104240.0,104230.0,1.50316755]
[1747055894750,0.03077798,104240.0,104230.0,1.17205212]
[1747055894978,0.03077798,104240.0,104230.0,1.50316755]
[1747055895633,0.23223587,104240.0,104230.0,1.49357403]
[1747055895853,0.22925095,104240.0,104230.0,1.13419722]
[1747055896081,0.23025095,104240.0,104230.0,1.14379138]
[1747055896532,0.23025095,104240.0,104230.0,1.15338517]
[1747055896712,0.23025095,104240.0,104230.0,1.14379138]
[1747055897145,0.23025095,104240.0,104230.0,1.48450051]
[1747055897308,0.23025095,104240.0,104230.0,1.14379138]
[1747055897512,0.23025095,104240.0,104230.0,1.15338517]
[1747055897731,0.01259269,104240.0,104230.0,1.15338517]
[1747055898000,0.01259269,104240.0,104230.0,1.49409412]
[1747055898173,0.22364373,104240.0,104230.0,1.14379138]
[1747055898376,0.23323614,104240.0,104230.0,1.15338517]
[1747055898598,0.23323614,104240.0,104230.0,1.4845006]
[1747055898818,0.0221851,104240.0,104230.0,1.49409412]
[1747055899021,0.03177797,104240.0,104230.0,1.49409412]
[1747055899240,0.23323604,104240.0,104230.0,1.4845006]
[1747055899436,0.22925094,104240.0,104230.0,0.93272]
[1747055899636,0.22925094,104240.0,104230.0,1.14379119]
[1747055899794,0.23884345,104240.0,104230.0,1.47490681]
[1747055900000,0.23884345,104240.0,104230.0,1.14379138]
[1747055900461,0.02218529,104240.0,104230.0,1.49409412]
[1747055900847,0.21405076,104240.0,104230.0,0.93272]
[1747055901058,0.24485076,104240.0,104230.0,0.72460333]
[1747055901310,0.24485076,104240.0,104230.0,0.7341974]
[1747055901562,0.254444,104240.0,104230.0,0.7341974]
[1747055901776,0.254444,104240.0,104230.0,0.74379119]
[1747055901978,0.254444,104240.0,104230.0,0.53272]
[1747055902151,0.23525816,104240.0,104230.0,0.53272]
[1747055902352,0.23525816,104240.0,104230.0,0.73419731]
[1747055902550,0.23525816,104240.0,104230.0,0.53272]
[1747055902761,0.22566492,104240.0,104230.0,0.53272]
[1747055902997,0.22566492,104240.0,104230.0,0.74379129]
[1747055903412,0.22566492,104240.0,104230.0,0.76297878]
[1747055903743,0.22566492,104240.0,104230.0,0.75338508]
[1747055903974,0.22566492,104240.0,104230.0,0.74379138]
[1747055904152,0.22566492,104240.0,104230.0,0.75338527]
[1747055904564,0.22566492,104240.0,104230.0,0.74379138]
[1747055905373,0.22566492,104240.0,104230.0,0.53272]
[1747055905592,0.22566492,104240.0,104230.0,0.74379138]
[1747055905799,0.22566492,104240.0,104230.0,0.75338517]
[1747055906012,0.21056492,104240.0,104230.0,0.75338517]
[1747055906203,0.21056492,104240.0,104230.0,0.74379138]
[1747055906412,0.21056492,104240.0,104230.0,0.75338517]
[1747055906641,0.21056492,104240.0,104230.0,0.7244733]
[1747055906841,0.22015798,104240.0,104230.0,0.41338517]
[1747055907044,0.239344,104240.0,104230.0,0.40379138]
[1747055907245,0.239344,104240.0,104230.0,0.41338517]
[1747055907443,0.22975076,104240.0,104230.0,0.42297869]
[1747055907623,0.239344,104240.0,104230.0,0.42297887]
[1747055908031,0.239344,104240.0,104230.0,0.82297887]
[1747055908645,0.254744,104240.0,104230.0,0.82297887]
[1747055908995,0.239344,104240.0,104230.0,0.82297887]
[1747055909611,0.239344,104240.0,104230.0,0.81338517]
[1747055910133,0.239344,104240.0,104230.0,0.80379138]
[1747055910340,0.255344,104240.0,104230.0,0.81338517]
[1747055910577,0.255344,104240.0,104230.0,0.82297887]
[1747055910781,0.239344,104240.0,104230.0,0.82297887]
[1747055911638,0.239344,104240.0,104230.0,0.81338517]
[1747055911846,0.22975122,104240.0,104230.0,0.79419749]
[1747055912063,0.24565122,104240.0,104230.0,0.81338536]
[1747055912469,0.24565122,104240.0,104230.0,0.59272]
[1747055912676,0.22622133,104240.0,104230.0,0.59272]
[1747055913089,0.22622133,104240.0,104230.0,0.19272]
[1747055913992,0.22622133,104240.0,104230.0,0.39419731]
[1747055914209,0.22622133,104240.0,104230.0,0.4037911]
[1747055914412,0.22622133,104240.0,104230.0,0.20147731]
[1747055914622,0.22622133,104240.0,104230.0,0.2110712]
[1747055914826,0.00275641,104240.0,104230.0,0.57757394]
[1747055915027,0.00275641,104240.0,104230.0,2.60928894]
[1747055915158,0.00275641,104240.0,104230.0,1.62066024]
[1747055915369,0.00275641,104240.0,104230.0,1.79396824]
[1747055915586,0.00275641,104240.0,104230.0,2.10132524]
[1747055916907,0.001,104240.0,104230.0,1.77020981]
[1747055917106,0.001,104240.0,104230.0,1.92519324]
[1747055917464,0.01923226,104250.0,104240.0,0.56064354]
[1747055917776,0.23026306,104250.0,104240.0,0.91557094]
[1747055917984,0.23026379,104250.0,104240.0,0.91553094]
[1747055918177,0.01923272,104250.0,104240.0,1.33471633]
[1747055918368,0.02882486,104250.0,104240.0,1.33471633]
[1747055918816,0.03082486,104250.0,104240.0,1.33471633]
[1747055919036,0.23777138,104250.0,104240.0,1.32512391]
[1747055919233,0.04592486,104250.0,104240.0,1.34430929]
[1747055919870,0.04041709,104250.0,104240.0,1.34430938]
[1747055920015,0.23226361,104250.0,104240.0,1.67542481]
[1747055920218,0.03082486,104250.0,104240.0,1.67542426]
[1747055920435,0.22267138,104250.0,104240.0,1.34430883]
[1747055920631,0.02123272,104250.0,104240.0,1.34430883]
[1747055920829,0.21307924,104250.0,104240.0,1.33471623]
[1747055921193,0.21307924,104250.0,104240.0,1.66583166]
[1747055921395,0.22267138,104250.0,104240.0,1.67542426]
[1747055921611,0.22267138,104250.0,104240.0,1.70420826]
[1747055921832,0.22367138,104250.0,104240.0,1.70420826]
[1747055922036,0.23326361,104250.0,104240.0,1.69461566]
[1747055922456,0.23326361,104250.0,104240.0,1.70420826]
[1747055922677,0.02223272,104250.0,104240.0,1.70420826]
[1747055922934,0.0126404,104250.0,104240.0,1.72070826]
[1747055923155,0.02223217,104250.0,104240.0,1.72070826]
[1747055923340,0.03182412,104250.0,104240.0,1.72070826]
[1747055924610,0.0126404,104250.0,104240.0,1.72070826]
[1747055924819,0.02223217,104250.0,104240.0,1.72070826]
[1747055925070,0.00304881,104250.0,104240.0,1.73670826]
[1747055925467,0.00304881,104250.0,104240.0,1.83256256]
[1747055927857,0.22367119,104250.0,104240.0,0.96064892]
[1747055928063,0.02223244,104250.0,104240.0,1.35242033]
[1747055928277,0.2236711,104250.0,104240.0,1.27394334]
[1747055928487,0.2236711,104250.0,104240.0,1.28353612]
[1747055928856,0.23326342,104250.0,104240.0,1.68353612]
[1747055929087,0.23326333,104250.0,104240.0,1.68353612]
[1747055929335,0.24285565,104250.0,104240.0,1.68293612]
[1747055929542,0.24285565,104250.0,104240.0,1.68277612]
[1747055929866,0.23326333,104250.0,104240.0,1.68277612]
[1747055930098,0.23326333,104250.0,104240.0,1.69236826]
[1747055930498,0.03182458,104250.0,104240.0,1.69236826]
[1747055931057,0.03182458,104250.0,104240.0,1.70816826]
[1747055931058,0.00304881,104250.0,104240.0,1.70816826]
[1747055931267,0.00304881,104250.0,104240.0,1.72476826]
[1747055931871,0.00304881,104250.0,104240.0,2.80702799]
[1747055932258,0.00304881,104250.0,104240.0,2.14479713]
[1747055932467,0.00304881,104250.0,104240.0,2.47591256]
[1747055932890,0.00104881,104250.0,104240.0,2.47591256]
[1747055933123,0.00104881,104250.0,104240.0,2.89015256]
[1747055933561,4.881e-05,104250.0,104240.0,2.53751256]
[1747055933779,4.881e-05,104250.0,104240.0,2.39815656]
[1747055935373,4.881e-05,104250.0,104240.0,2.06704113]
[1747055935548,4.881e-05,104250.0,104240.0,2.35203556]
[1747055936099,4.881e-05,104250.0,104240.0,2.22854256]
[1747055936339,4.881e-05,104250.0,104240.0,1.92748826]
[1747055936550,4.881e-05,104250.0,104240.0,2.11486826]
[1747055937101,0.0096403,104250.0,104240.0,2.11486826]
[1747055937514,4.881e-05,104250.0,104240.0,2.11486826]
[1747055938450,4.881e-05,104250.0,104240.0,2.22622256]
[1747055939544,4.881e-05,104250.0,104240.0,2.21072256]
[1747055940003,0.01923208,104250.0,104240.0,2.07838343]
[1747055940146,0.02882394,104250.0,104240.0,2.08797603]
[1747055940789,0.22067046,104250.0,104240.0,2.08797603]
[1747055940986,0.23617046,104250.0,104240.0,1.747268]
[1747055941227,0.23617046,104250.0,104240.0,2.08797621]
[1747055941228,0.01554881,104250.0,104240.0,2.08797621]
[1747055941353,0.0096403,104250.0,104240.0,2.09756881]
[1747055941559,4.881e-05,104250.0,104240.0,2.11306881]
[1747055942191,4.881e-05,104250.0,104240.0,2.20892311]
[1747055944585,4.881e-05,104250.0,104240.0,4.01864211]
[1747055945034,4.881e-05,104250.0,104240.0,3.94179011]
[1747055945497,4.881e-05,104250.0,104240.0,3.92219111]
[1747055945969,4.881e-05,104250.0,104240.0,3.72727111]
[1747055946204,4.881e-05,104250.0,104240.0,3.75064954]
[1747055946418,4.881e-05,104250.0,104240.0,3.41953411]
[1747055947195,4.881e-05,104250.0,104240.0,3.78536459]
[1747055947463,4.881e-05,104250.0,104240.0,3.23399881]
[1747055947696,4.881e-05,104250.0,104240.0,3.56511424]
[1747055947922,4.881e-05,104250.0,104240.0,3.57965509]
[1747055948430,4.881e-05,104250.0,104240.0,3.67550939]
[1747055948659,4.881e-05,104250.0,104240.0,3.99550939]
[1747055948917,4.881e-05,104250.0,104240.0,3.99750939]
[1747055951512,4.881e-05,104250.0,104240.0,2.88267939]
[1747055951724,4.881e-05,104250.0,104240.0,5.88267939]
[1747055951945,4.881e-05,104250.0,104240.0,3.41779496]
[1747055952179,4.881e-05,104250.0,104240.0,2.52168311]
[1747055952992,4.881e-05,104250.0,104240.0,2.20168311]
[1747055956034,4.881e-05,104250.0,104240.0,2.18618311]
[1747055956323,0.01624881,104250.0,104240.0,1.84323051]
[1747055956546,0.24317988,104250.0,104240.0,0.195064]
[1747055956755,0.24317988,104250.0,104240.0,0.37733113]
[1747055956966,0.24317988,104250.0,104240.0,1.11733113]
[1747055957172,0.24317988,104250.0,104240.0,1.126924]
[1747055957616,0.31984963,104250.0,104240.0,0.003]
[1747055958250,0.31984963,104250.0,104240.0,0.20445807]
[1747055958464,0.31984963,104250.0,104240.0,0.003]
[1747055958891,0.31984963,104250.0,104240.0,0.21405094]
[1747055958892,0.03214881,104250.0,104240.0,0.21405094]
[1747055959098,0.26236333,104250.0,104240.0,0.54516637]
[1747055959310,0.26236397,104250.0,104240.0,0.55375915]
[1747055959525,0.25277202,104250.0,104240.0,0.55175915]
[1747055959729,0.25577202,104250.0,104240.0,0.55175915]
[1747055959938,0.05433226,104250.0,104240.0,0.56135175]
[1747055960154,0.07351663,104250.0,104240.0,0.23023632]
[1747055960357,0.0639244,104250.0,104240.0,0.23023632]
[1747055960780,0.06392431,104250.0,104240.0,0.23023632]
[1747055960997,0.07351645,104250.0,104240.0,0.23023632]
[1747055961226,0.27495529,104250.0,104240.0,0.23023632]
[1747055961494,0.08310877,104250.0,104240.0,0.23023632]
[1747055961715,0.27495529,104250.0,104240.0,0.23023632]
[1747055961926,0.07351645,104250.0,104240.0,0.23023632]
[1747055962136,0.07351645,104250.0,104240.0,0.63023632]
[1747055962381,0.27495593,104250.0,104240.0,0.63023632]
[1747055962614,0.26536407,104250.0,104240.0,0.62064372]
[1747055962850,0.25577202,104250.0,104240.0,0.60145807]
[1747055963053,0.24617988,104250.0,104240.0,0.61105094]
[1747055963487,0.22699533,104250.0,104240.0,0.4]
[1747055963700,0.23245798,104240.0,104230.0,0.20147584]
[1747055964131,0.24205095,104240.0,104230.0,0.62066324]
[1747055964363,0.24205095,104240.0,104230.0,0.4]
[1747055964598,0.23245798,104240.0,104230.0,0.60147749]
[1747055964827,0.04059278,104240.0,104230.0,0.22066499]
[1747055965046,0.05977835,104240.0,104230.0,0.23025851]
[1747055965478,0.06937159,104240.0,104230.0,0.23025851]
[1747055965896,0.26123651,104240.0,104230.0,0.22066499]
[1747055966129,0.06937159,104240.0,104230.0,0.23025851]
[1747055966331,0.26123651,104240.0,104230.0,0.22066499]
[1747055966773,0.26123651,104240.0,104230.0,0.21107138]
[1747055966979,0.21687731,104230.0,104220.0,1.10689645]
[1747055967186,0.04978777,104230.0,104220.0,1.11649144]
[1747055967429,0.25126526,104230.0,104220.0,1.11709163]
[1747055967645,0.04978731,104230.0,104220.0,1.13628087]
[1747055967857,0.04978731,104230.0,104220.0,1.14587531]
[1747055968086,0.04418129,104230.0,104220.0,1.14587531]
[1747055968567,0.04418129,104230.0,104220.0,1.14787531]
[1747055968824,0.05188584,104240.0,104230.0,0.22066471]
[1747055969068,0.19182903,104260.0,104230.0,0.22066471]
[1747055969069,0.67444125,104270.0,104230.0,0.21107119]
[1747055969310,0.00959269,104240.0,104230.0,0.22066471]
[1747055969570,0.0191851,104240.0,104230.0,0.22066471]
[1747055969820,0.00959241,104240.0,104230.0,0.22066407]
[1747055970081,0.02877623,104250.0,104240.0,0.22064345]
[1747055970305,0.03836855,104250.0,104240.0,0.21105076]
[1747055970520,0.03836855,104250.0,104240.0,0.22064345]
[1747055970729,0.23021507,104250.0,104240.0,0.21105076]
[1747055971366,0.10544561,104260.0,104240.0,0.21105021]
[1747055971582,0.23021872,104270.0,104260.0,0.20141943]
[1747055971802,0.30689344,104270.0,104250.0,0.21102979]
[1747055972035,0.22060178,104260.0,104250.0,0.21103015]
[1747055972279,0.27178421,104260.0,104250.0,0.22062256]
[1747055972537,0.26219318,104260.0,104250.0,0.23021433]
[1747055973280,0.24301083,104260.0,104250.0,0.20143875]
[1747055973517,0.23341952,104260.0,104250.0,0.20143875]
[1747055973740,0.23341952,104260.0,104250.0,0.21103089]
[1747055974704,0.23341952,104260.0,104250.0,0.20143875]
[1747055974931,0.19182812,104260.0,104250.0,0.20143875]
[1747055975595,0.20541925,104260.0,104250.0,0.21103089]
[1747055975823,0.20541925,104260.0,104250.0,0.20143875]
[1747055976059,0.20841925,104260.0,104250.0,0.2110308]
[1747055976280,0.20841925,104260.0,104250.0,0.21103089]
[1747055976754,0.01918364,104250.0,104240.0,0.62705076]
[1747055976999,0.02877642,104250.0,104240.0,0.62064336]
[1747055977241,0.02877853,104240.0,104230.0,0.71439083]
[1747055977484,0.220644,104240.0,104230.0,0.71439156]
[1747055977705,0.02877908,104240.0,104230.0,1.13357887]
[1747055978423,0.02877853,104240.0,104230.0,1.13357887]
[1747055979143,0.0185,104260.0,104250.0,0.22062238]
[1747055979369,0.03177283,104260.0,104250.0,0.22062238]
[1747055979823,0.04136414,104260.0,104250.0,0.22062238]
[1747055980051,0.24278366,104260.0,104250.0,0.22062256]
[1747055980251,0.24278366,104260.0,104250.0,0.2110307]
[1747055980252,0.23319299,104260.0,104250.0,0.2110307]
[1747055980395,0.23319299,104260.0,104250.0,0.22062256]
[1747055980657,0.03177347,104260.0,104250.0,0.22062256]
[1747055980849,0.03177347,104260.0,104250.0,0.23021424]
[1747055981067,0.01918216,104260.0,104250.0,0.23021424]
[1747055981492,0.02877283,104260.0,104250.0,0.23021424]
[1747055981898,0.83182239,104280.0,104270.0,0.22058006]
[1747055981899,0.016,104280.0,104270.0,0.22058006]
[1747055982117,0.25245042,104290.0,104280.0,0.2013808]
[1747055982343,0.01917812,104280.0,104270.0,0.21098931]
[1747055982554,0.22055901,104280.0,104270.0,0.20139983]
[1747055982789,0.21097018,104280.0,104270.0,0.21099022]
[1747055983402,0.21097018,104280.0,104270.0,0.20140011]
[1747055983618,0.20538089,104280.0,104270.0,0.20140011]
[1747055983831,0.004,104280.0,104270.0,0.51041436]
[1747055984070,0.004,104280.0,104270.0,0.67373436]
[1747055984518,0.03276693,104280.0,104270.0,0.67373436]
[1747055984738,0.02717774,104280.0,104270.0,1.04223436]
[1747055984965,0.22855836,104280.0,104270.0,0.63855441]
[1747055985184,0.03676703,104280.0,104270.0,0.65182457]
[1747055985414,0.04235641,104280.0,104270.0,0.67310947]
[1747055985626,0.23414848,104280.0,104270.0,0.67310956]
[1747055986012,0.22455947,104280.0,104270.0,0.53679041]
[1747055986219,0.21497018,104280.0,104270.0,0.3258]
[1747055986415,0.21098995,104270.0,104260.0,0.59182812]
[1747055986669,0.2014002,104270.0,104260.0,1.28384159]
[1747055987042,0.2014002,104270.0,104260.0,0.88384159]
[1747055987166,0.2014002,104270.0,104260.0,0.56060159]
[1747055987364,0.03836083,104270.0,104260.0,0.58669235]
[1747055987800,0.23976103,104270.0,104260.0,0.58669235]
[1747055987999,0.01918014,104270.0,104260.0,0.58669235]
[1747055988235,0.01918014,104270.0,104260.0,0.58769235]
[1747055988236,0.03836083,104270.0,104260.0,0.58769235]
[1747055988441,0.04795131,104270.0,104260.0,0.58769235]
[1747055988688,0.04795131,104270.0,104260.0,0.341]
[1747055988689,0.22058089,104270.0,104260.0,0.341]
[1747055988935,0.22659059,104270.0,104260.0,0.54241952]
[1747055989389,0.21099059,104270.0,104260.0,0.56160186]
[1747055989617,0.21099059,104270.0,104260.0,0.55201083]
[1747055989839,0.21099059,104270.0,104260.0,0.56160205]
[1747055990293,0.21099059,104270.0,104260.0,0.56260205]
[1747055990521,0.21099059,104270.0,104260.0,0.57219318]
[1747055990728,0.21099059,104270.0,104260.0,0.58178412]
[1747055990957,0.20769133,104280.0,104260.0,0.58178302]
[1747055991196,0.20769133,104280.0,104260.0,0.57219124]
[1747055991445,0.01918013,104270.0,104260.0,0.92014148]
[1747055991712,0.01917977,104270.0,104260.0,0.58014148]
[1747055991941,0.02876998,104270.0,104260.0,0.58014148]
[1747055992189,0.03836028,104270.0,104260.0,0.58014148]
[1747055993173,0.02876998,104270.0,104260.0,0.57914148]
[1747055993633,0.02876998,104270.0,104260.0,0.58014148]
[1747055993881,0.03836028,104270.0,104260.0,0.24909124]
[1747055994125,0.01917977,104270.0,104260.0,0.24809124]
[1747055994355,0.02876979,104270.0,104260.0,0.24809124]
[1747055994584,0.03836,104270.0,104260.0,0.24809124]
[1747055995311,0.03836,104270.0,104260.0,0.24909124]
[1747055996017,0.03836,104270.0,104260.0,0.25009124]
[1747055996266,0.02876979,104270.0,104260.0,0.25009124]
[1747055996498,0.5573252,104290.0,104280.0,0.19179133]
[1747055996735,0.40002694,104290.0,104280.0,0.220559]
[1747055996985,0.5822117,104290.0,104280.0,0.20138089]
[1747055997209,0.57262324,104290.0,104280.0,0.20138089]
[1747055997463,0.37126175,104290.0,104280.0,0.20138089]
[1747055997705,0.37126175,104290.0,104280.0,0.21097018]
[1747055997706,0.57649951,104290.0,104280.0,0.21097018]
[1747055997927,0.38672657,104290.0,104280.0,0.23014829]
[1747055998171,0.24049951,104290.0,104280.0,0.23014829]
[1747055998414,0.24049951,104290.0,104280.0,0.24634838]
[1747055998640,0.24049951,104290.0,104280.0,0.23675937]
[1747055998954,0.24049951,104290.0,104280.0,0.23014847]
[1747055999702,0.24049951,104290.0,104280.0,0.22707018]
[1747056000322,0.22132324,104290.0,104280.0,0.21097036]
[1747056000535,0.25008797,104290.0,104280.0,0.22717036]
[1747056000787,0.24049997,104290.0,104280.0,0.20138089]
[1747056001004,0.02954975,104290.0,104280.0,0.23014847]
[1747056001206,0.03913802,104290.0,104280.0,0.24634847]
[1747056001408,0.02954966,104290.0,104280.0,0.59289871]
[1747056001615,0.03913784,104290.0,104280.0,0.59289871]
[1747056001860,0.02954966,104290.0,104280.0,0.59289871]
[1747056002066,0.04872602,104290.0,104280.0,0.59289871]
[1747056002274,0.03913775,104290.0,104280.0,0.59289871]
[1747056002476,0.05831448,104290.0,104280.0,0.59289871]
[1747056002689,0.24049951,104290.0,104280.0,0.24267036]
[1747056002900,0.23091142,104290.0,104280.0,0.4]
[1747056003142,0.20138071,104280.0,104270.0,0.17292]
[1747056003349,0.21097,104280.0,104270.0,0.37432002]
[1747056003576,0.21097,104280.0,104270.0,0.15712]
[1747056003577,0.20138071,104280.0,104270.0,0.15712]
[1747056004223,0.01918142,104260.0,104250.0,1.67309897]
[1747056004429,0.21099004,104270.0,104260.0,0.23680122]
[1747056004643,0.22058052,104270.0,104260.0,0.20802812]
[1747056004875,0.22058052,104270.0,104260.0,0.21101083]
[1747056005086,0.2109905,104270.0,104260.0,0.21101083]
[1747056005494,0.2109905,104270.0,104260.0,0.22060205]
[1747056005976,0.21101001,104260.0,104250.0,1.4761889]
[1747056006176,0.01918161,104260.0,104250.0,1.6641244]
[1747056006935,0.01918161,104260.0,104250.0,1.33307416]
[1747056007145,0.01918161,104260.0,104250.0,1.6641244]
[1747056007533,0.01918161,104260.0,104250.0,1.6661244]
[1747056008092,0.03836386,104260.0,104250.0,1.6631244]
[1747056008303,0.02877255,104260.0,104250.0,1.6631244]
[1747056008511,0.0161,104280.0,104270.0,0.20140002]
[1747056008719,0.22691319,104290.0,104280.0,0.21097018]
[1747056008929,0.03513857,104290.0,104280.0,0.23014884]
[1747056009133,0.01596175,104290.0,104280.0,0.587288]
[1747056009360,0.03513784,104290.0,104280.0,0.587288]
[1747056009508,0.02554966,104290.0,104280.0,0.25623776]
[1747056009730,0.05431439,104290.0,104280.0,0.25623776]
[1747056009949,0.05431439,104290.0,104280.0,0.23973776]
[1747056010158,0.05631439,104290.0,104280.0,0.23973776]
[1747056010375,0.05631439,104290.0,104280.0,0.25523776]
[1747056011653,0.02754966,104290.0,104280.0,0.586288]
[1747056011901,0.03713766,104290.0,104280.0,0.586288]
[1747056012131,0.03913766,104290.0,104280.0,0.586288]
[1747056012382,0.04872584,104290.0,104280.0,0.586288]
[1747056012605,0.0583143,104290.0,104280.0,0.25523776]
[1747056013075,0.06790267,104290.0,104280.0,0.41235776]
[1747056013286,0.06790331,104290.0,104280.0,0.41235776]
[1747056013742,0.0487263,104290.0,104280.0,0.41235776]
[1747056014136,0.05831476,104290.0,104280.0,0.41235776]
[1747056014990,0.0487262,104290.0,104280.0,0.41235776]
[1747056015187,0.01996175,104290.0,104280.0,0.56539776]
[1747056015400,0.02954993,104290.0,104280.0,0.912448]
[1747056015620,0.03913784,104290.0,104280.0,0.912448]
[1747056015818,0.02954966,104290.0,104280.0,0.912448]
[1747056016031,0.04872602,104290.0,104280.0,0.912448]
[1747056016252,0.04872602,104290.0,104280.0,0.58139776]
[1747056016462,0.05831439,104290.0,104280.0,0.912448]
[1747056017296,0.06790285,104290.0,104280.0,0.912448]
[1747056017499,0.05831439,104290.0,104280.0,0.896448]
[1747056017918,0.06790294,104290.0,104280.0,0.56539776]